bitfinex/quotes_BTCUSD_20220731
["timestamp","ask_amount","ask_price","bid_price","bid_amount"]
[1659275537911,0.40725733,23729.0,23723.0,0.04991521]
[1659275538629,0.48625733,23729.0,23723.0,0.34991521]
[1659275538854,0.40725733,23728.0,23724.0,0.303878]
[1659275539074,0.40725733,23728.0,23725.0,0.303878]
[1659275539266,0.40725733,23728.0,23725.0,0.03759668]
[1659275539492,0.43245733,23728.0,23725.0,0.03759668]
[1659275539724,0.079,23729.0,23728.0,0.04991521]
[1659275539961,0.00529586,23731.0,23730.0,0.04991521]
[1659275540426,0.00529586,23731.0,23730.0,0.38825181]
[1659275541359,0.3,23738.0,23730.0,0.39667097]
[1659275541593,0.40725733,23737.0,23730.0,0.09279297]
[1659275541812,0.40715258,23737.0,23730.0,0.09279297]
[1659275542284,0.40715258,23737.0,23732.0,0.04991521]
[1659275542482,0.48615258,23737.0,23732.0,0.04991521]
[1659275542746,0.48615258,23737.0,23735.0,0.04991521]
[1659275542987,0.079,23737.0,23736.0,0.08437381]
[1659275543237,0.079,23737.0,23736.0,0.04991521]
[1659275543930,0.3,23742.0,23736.0,0.04991521]
[1659275544173,0.71113533,23741.0,23736.0,0.08437381]
[1659275544401,0.40725733,23740.0,23736.0,0.08437381]
[1659275544619,0.08276475,23737.0,23736.0,0.08437381]
[1659275544864,0.08276475,23737.0,23736.0,0.04991521]
[1659275545107,0.08276475,23737.0,23736.0,0.0344586]
[1659275545803,0.00276475,23737.0,23736.0,0.0344586]
[1659275546021,0.00276475,23737.0,23735.0,0.04991521]
[1659275546307,0.00322844,23737.0,23735.0,0.04991521]
[1659275546518,0.07222844,23737.0,23735.0,0.04991521]
[1659275546747,0.07176475,23737.0,23735.0,0.04991521]
[1659275546975,0.069,23737.0,23735.0,0.04991521]
[1659275547197,0.069,23737.0,23735.0,0.08437381]
[1659275547416,0.069,23737.0,23735.0,0.08482767]
[1659275547851,0.43245733,23740.0,23735.0,0.08482767]
[1659275548091,0.05,23739.0,23735.0,0.08482767]
[1659275548315,0.43245733,23740.0,23735.0,0.08482767]
[1659275548534,0.51245733,23740.0,23736.0,0.00179401]
[1659275548777,0.303878,23739.0,23736.0,0.00179401]
[1659275548990,0.51245733,23740.0,23736.0,0.00179401]
[1659275549446,0.303878,23739.0,23736.0,0.00179401]
[1659275549699,0.51245733,23740.0,23736.0,0.00179401]
[1659275549936,0.30434169,23739.0,23736.0,0.00179401]
[1659275550174,0.303878,23739.0,23736.0,0.00179401]
[1659275550398,0.00276475,23736.0,23735.0,0.08482767]
[1659275551627,0.00276475,23736.0,23735.0,0.04991521]
[1659275551849,0.00276475,23736.0,23735.0,0.05606883]
[1659275552380,0.08176475,23736.0,23735.0,0.05606883]
[1659275553033,0.08222844,23736.0,23735.0,0.05606883]
[1659275553235,0.08176475,23736.0,23735.0,0.05606883]
[1659275553931,0.00276475,23736.0,23735.0,0.05606883]
[1659275554576,0.08176475,23736.0,23735.0,0.05606883]
[1659275555767,0.00276475,23736.0,23735.0,0.05606883]
[1659275556438,0.08276475,23736.0,23735.0,0.05606883]
[1659275557852,0.00276475,23736.0,23735.0,0.05606883]
[1659275558539,0.07476475,23736.0,23735.0,0.05606883]
[1659275558969,0.07476475,23736.0,23735.0,0.05584684]
[1659275559896,0.00276475,23736.0,23735.0,0.05584684]
[1659275560559,0.08276475,23736.0,23735.0,0.05584684]
[1659275560998,0.08322844,23736.0,23735.0,0.05584684]
[1659275561228,0.08276475,23736.0,23735.0,0.05584684]
[1659275562017,0.00276475,23736.0,23735.0,0.05584684]
[1659275563825,0.08276475,23736.0,23735.0,0.05584684]
[1659275565151,0.00276475,23736.0,23735.0,0.05584684]
[1659275565375,0.08276475,23736.0,23735.0,0.05584684]
[1659275567791,0.00276475,23736.0,23735.0,0.05584684]
[1659275568476,0.08276475,23736.0,23735.0,0.05584684]
[1659275569840,0.00276475,23736.0,23735.0,0.05584684]
[1659275570490,0.08276475,23736.0,23735.0,0.05584684]
[1659275571812,0.08276475,23736.0,23735.0,0.0563007]
[1659275572160,0.00276475,23736.0,23735.0,0.0563007]
[1659275572851,0.08276475,23736.0,23735.0,0.0563007]
[1659275574074,0.00276475,23736.0,23735.0,0.0563007]
[1659275574276,0.00276475,23736.0,23735.0,0.00593163]
[1659275574440,0.08322844,23736.0,23735.0,0.00593163]
[1659275574646,0.08276475,23736.0,23735.0,0.04039023]
[1659275574861,0.08276475,23736.0,23735.0,0.00593163]
[1659275575289,0.08276475,23736.0,23735.0,0.0111157]
[1659275575694,0.00276475,23736.0,23735.0,0.0455743]
[1659275576501,0.08276475,23736.0,23735.0,0.00593163]
[1659275576763,0.08276475,23736.0,23735.0,0.04039023]
[1659275576980,0.08276475,23736.0,23735.0,0.00593163]
[1659275577790,0.08322844,23736.0,23735.0,0.00593163]
[1659275578029,0.38710644,23736.0,23735.0,0.00593163]
[1659275579869,0.30710644,23736.0,23735.0,0.00593163]
[1659275580546,0.30664275,23736.0,23735.0,0.00593163]
[1659275580802,0.00276475,23736.0,23735.0,0.00593163]
[1659275581288,0.38710644,23736.0,23735.0,0.00593163]
[1659275581726,0.08276475,23736.0,23735.0,0.00593163]
[1659275581950,0.38664275,23736.0,23735.0,0.00593163]
[1659275582460,0.38710644,23736.0,23735.0,0.00593163]
[1659275582907,0.79436377,23736.0,23735.0,0.00593163]
[1659275583867,0.71436377,23736.0,23735.0,0.00593163]
[1659275584558,0.79436377,23736.0,23735.0,0.00593163]
[1659275585280,0.79436377,23736.0,23726.0,0.5772]
[1659275585281,0.84714628,23736.0,23726.0,0.5772]
[1659275585504,1.56123533,23735.0,23726.0,0.6272]
[1659275585734,0.40725733,23734.0,23726.0,0.5772]
[1659275586419,0.40725733,23734.0,23726.0,0.6272]
[1659275586632,0.48725733,23734.0,23726.0,0.6272]
[1659275586850,0.40725733,23733.0,23726.0,0.6272]
[1659275587582,0.40725733,23733.0,23726.0,0.5772]
[1659275587826,0.40725733,23733.0,23726.0,0.6272]
[1659275588076,0.40714423,23733.0,23726.0,0.5772]
[1659275588302,0.71113533,23732.0,23723.0,0.41411521]
[1659275588534,0.71113533,23731.0,23723.0,0.41411521]
[1659275588780,0.40725733,23730.0,23723.0,0.41411521]
[1659275589274,0.8965,23732.0,23726.0,0.04991521]
[1659275589275,0.40725733,23732.0,23726.0,0.04991521]
[1659275589496,0.40725733,23732.0,23727.0,0.303878]
[1659275589726,0.40725733,23732.0,23726.0,0.04991521]
[1659275589947,0.40725733,23732.0,23731.0,0.04991521]
[1659275589948,0.0252,23732.0,23731.0,0.04991521]
[1659275590193,0.00556502,23734.0,23731.0,0.04991521]
[1659275590194,0.00556502,23734.0,23731.0,0.08437381]
[1659275590446,0.08,23732.0,23731.0,0.08437381]
[1659275591589,0.08556502,23732.0,23731.0,0.08437381]
[1659275591806,0.00556502,23732.0,23731.0,0.04991521]
[1659275592520,0.07356502,23732.0,23731.0,0.04991521]
[1659275592776,0.07356502,23732.0,23730.0,0.0344586]
[1659275593682,0.07402871,23732.0,23728.0,0.571]
[1659275593921,0.00602871,23732.0,23728.0,0.571]
[1659275594097,0.00602871,23732.0,23729.0,0.0344586]
[1659275594588,0.07402871,23732.0,23729.0,0.0344586]
[1659275595035,0.07356502,23732.0,23729.0,0.0344586]
[1659275595940,0.00556502,23732.0,23729.0,0.0344586]
[1659275596667,0.07356502,23732.0,23729.0,0.08437381]
[1659275597563,0.07356502,23732.0,23728.0,0.571]
[1659275597812,0.00556502,23732.0,23728.0,0.571]
[1659275598286,0.00556502,23732.0,23729.0,0.0344586]
[1659275598515,0.07356502,23732.0,23729.0,0.0344586]
[1659275598738,0.07402871,23732.0,23729.0,0.0344586]
[1659275599184,0.07356502,23732.0,23729.0,0.0344586]
[1659275599854,0.00556502,23732.0,23729.0,0.0344586]
[1659275600540,0.07877959,23732.0,23729.0,0.0344586]
[1659275600769,0.07902871,23732.0,23728.0,0.571]
[1659275600993,0.07902871,23732.0,23729.0,0.0344586]
[1659275601439,0.07856502,23732.0,23729.0,0.0344586]
[1659275601665,0.07856502,23732.0,23729.0,0.08437381]
[1659275601912,0.00556502,23732.0,23729.0,0.08437381]
[1659275602364,0.00556502,23732.0,23730.0,0.303878]
[1659275602584,0.08056502,23732.0,23729.0,0.08437381]
[1659275603739,0.00556502,23732.0,23729.0,0.08437381]
[1659275603965,0.00556502,23732.0,23730.0,0.303878]
[1659275604213,0.00556502,23732.0,23729.0,0.08437381]
[1659275604442,0.06856502,23732.0,23729.0,0.08437381]
[1659275604681,0.06856502,23732.0,23729.0,0.04991521]
[1659275604682,0.06902871,23732.0,23729.0,0.04991521]
[1659275605607,0.06902871,23732.0,23728.0,0.571]
[1659275605844,0.06902871,23732.0,23725.0,0.63991521]
[1659275605845,0.40725733,23731.0,23725.0,0.04991521]
[1659275606084,0.40725733,23731.0,23722.0,0.5815]
[1659275606318,0.40725733,23731.0,23722.0,0.98875733]
[1659275606319,0.70725733,23731.0,23722.0,0.98875733]
[1659275606545,0.40725733,23730.0,23722.0,0.98875733]
[1659275607923,0.3,23729.0,23722.0,0.5815]
[1659275608211,0.40725733,23728.0,23722.0,0.5815]
[1659275609125,0.40725733,23728.0,23721.0,0.41791521]
[1659275609398,0.603878,23727.0,23720.0,0.644]
[1659275609615,0.603878,23727.0,23718.0,0.9677]
[1659275609616,0.71122012,23726.0,23718.0,0.9677]
[1659275609862,0.70725733,23725.0,23718.0,1.37495733]
[1659275610093,0.40725733,23725.0,23718.0,1.37495733]
[1659275610313,0.40725733,23725.0,23718.0,0.9677]
[1659275611510,0.40725733,23724.0,23718.0,0.9677]
[1659275612423,0.47925733,23724.0,23718.0,0.9677]
[1659275612645,0.40725733,23723.0,23718.0,0.9677]
[1659275612879,0.1252,23719.0,23718.0,0.0021]
[1659275613111,0.00046369,23719.0,23718.0,0.0021]
[1659275613367,0.40725733,23723.0,23718.0,0.0021]
[1659275614080,0.303878,23722.0,23718.0,0.0021]
[1659275614298,0.1252,23719.0,23718.0,0.00199957]
[1659275615709,0.17994325,23719.0,23718.0,0.00199957]
[1659275616447,0.24594325,23719.0,23718.0,0.00199957]
[1659275617115,0.95707858,23719.0,23718.0,0.00199957]
[1659275618260,0.89107858,23719.0,23718.0,0.00199957]
[1659275618501,0.97107858,23719.0,23718.0,0.00199957]
[1659275618724,0.97384798,23719.0,23718.0,0.00199957]
[1659275619927,0.97384798,23719.0,23715.0,0.001]
[1659275619928,0.17528479,23716.0,23715.0,0.001]
[1659275620159,1.23642012,23716.0,23715.0,0.001]
[1659275620625,1.97822012,23716.0,23715.0,0.001]
[1659275620863,0.1752,23715.0,23713.0,0.0021]
[1659275621147,0.83633533,23714.0,23713.0,0.0021]
[1659275621369,1.18658445,23714.0,23713.0,0.0021]
[1659275621601,1.53679902,23714.0,23713.0,0.0021]
[1659275622303,0.83679902,23714.0,23713.0,0.0021]
[1659275622540,0.90379902,23714.0,23713.0,0.0021]
[1659275623800,1.23688381,23714.0,23713.0,0.0021]
[1659275624385,1.30388381,23714.0,23713.0,0.0021]
[1659275625045,1.30388381,23714.0,23709.0,0.0003]
[1659275625046,0.1,23710.0,23709.0,0.0003]
[1659275625275,0.303878,23710.0,23709.0,0.0003]
[1659275625705,0.303878,23710.0,23709.0,0.00023463]
[1659275626395,0.373878,23710.0,23709.0,0.00023463]
[1659275626614,0.373878,23710.0,23706.0,0.0317]
[1659275626819,0.1252,23709.0,23706.0,0.03113463]
[1659275627743,0.5651,23713.0,23707.0,0.0344586]
[1659275627959,0.5651,23713.0,23707.0,0.08437381]
[1659275627960,0.71113533,23712.0,23707.0,0.08437381]
[1659275628193,0.40725733,23711.0,23706.0,0.03113463]
[1659275628404,0.0055448,23710.0,23705.0,0.0021]
[1659275629980,0.0055448,23710.0,23705.0,0.0338]
[1659275630227,0.0055448,23710.0,23707.0,0.04991521]
[1659275630432,0.00046369,23709.0,23707.0,0.04991521]
[1659275630654,0.05,23708.0,23707.0,0.04991521]
[1659275630874,0.0252,23709.0,23707.0,0.08578958]
[1659275631104,0.0822,23710.0,23707.0,0.08578958]
[1659275631354,0.08244912,23710.0,23707.0,0.08578958]
[1659275631547,0.08266369,23710.0,23707.0,0.04991521]
[1659275631757,0.02566369,23710.0,23707.0,0.04991521]
[1659275632375,0.07966369,23710.0,23707.0,0.04991521]
[1659275632840,0.07966369,23710.0,23707.0,0.08578958]
[1659275633067,0.0792,23710.0,23707.0,0.08578958]
[1659275633292,0.07966369,23710.0,23707.0,0.05133098]
[1659275633503,0.0792,23710.0,23707.0,0.04991521]
[1659275633723,0.0792,23710.0,23708.0,0.0344586]
[1659275633724,0.0252,23710.0,23708.0,0.0344586]
[1659275633976,0.41280213,23711.0,23707.0,0.04991521]
[1659275634199,0.0055448,23711.0,23707.0,0.04991521]
[1659275634411,0.076,23710.0,23708.0,0.303878]
[1659275634622,0.076,23710.0,23709.0,0.34991521]
[1659275634847,0.076,23710.0,23709.0,1.44550914]
[1659275635068,0.076,23710.0,23709.0,1.53985262]
[1659275635569,0.0055448,23711.0,23710.0,0.09991521]
[1659275635797,0.0027748,23711.0,23710.0,1.81515054]
[1659275636017,0.0027748,23711.0,23710.0,1.82779402]
[1659275636251,0.0027694,23719.0,23710.0,1.82779402]
[1659275636457,0.0027694,23719.0,23712.0,0.1799]
[1659275636725,0.0027694,23719.0,23717.0,0.04991521]
[1659275636942,0.0027694,23719.0,23713.0,1.29282533]
[1659275636943,0.0027694,23719.0,23718.0,0.49163114]
[1659275637163,0.0027694,23719.0,23718.0,0.303878]
[1659275637382,0.0027694,23719.0,23715.0,0.08160521]
[1659275637383,0.0546694,23719.0,23714.0,0.543]
[1659275637592,0.0546694,23719.0,23714.0,0.95025733]
[1659275637593,0.0279694,23719.0,23714.0,0.95025733]
[1659275637871,0.0279694,23719.0,23715.0,0.04991521]
[1659275638101,0.0279694,23719.0,23716.0,0.0344586]
[1659275638309,0.0027694,23719.0,23716.0,0.0344586]
[1659275638540,0.0667694,23719.0,23718.0,0.00722421]
[1659275639905,0.0027694,23719.0,23718.0,0.00722421]
[1659275640326,0.0667694,23719.0,23718.0,0.00722421]
[1659275641202,0.0667694,23719.0,23718.0,0.00877235]
[1659275641652,0.0027694,23719.0,23718.0,0.00877235]
[1659275642071,0.0027694,23719.0,23718.0,0.00722421]
[1659275642492,0.0667694,23719.0,23718.0,0.00722421]
[1659275643793,0.0027694,23719.0,23718.0,0.00722421]
[1659275644513,0.0127694,23719.0,23718.0,0.84227475]
[1659275644725,0.0127694,23719.0,23718.0,2.26515475]
[1659275644940,0.0127694,23719.0,23718.0,2.27779823]
[1659275645634,0.0027694,23719.0,23718.0,2.20379823]
[1659275646501,0.0027694,23719.0,23718.0,2.28279823]
[1659275646775,0.0027694,23719.0,23718.0,2.28099106]
[1659275647643,0.0027694,23719.0,23718.0,2.20199106]
[1659275648115,9.4e-06,23719.0,23718.0,2.20199106]
[1659275648369,9.4e-06,23719.0,23718.0,2.28099106]
[1659275649236,9.4e-06,23719.0,23718.0,2.29355638]
[1659275649708,9.4e-06,23719.0,23718.0,2.21455638]
[1659275649928,9.4e-06,23719.0,23718.0,2.65635638]
[1659275650149,9.4e-06,23719.0,23718.0,2.21455638]
[1659275650364,9.4e-06,23719.0,23718.0,2.29355638]
[1659275651251,9.4e-06,23719.0,23718.0,2.2809129]
[1659275652576,9.4e-06,23719.0,23718.0,1.8992329]
[1659275652801,9.4e-06,23719.0,23718.0,1.7693329]
[1659275653729,9.4e-06,23719.0,23718.0,1.6903329]
[1659275654165,9.4e-06,23719.0,23718.0,1.32776758]
[1659275654463,9.4e-06,23719.0,23718.0,1.40576758]
[1659275655480,9.4e-06,23719.0,23718.0,0.99851025]
[1659275656172,9.4e-06,23719.0,23718.0,1.40576758]
[1659275656395,9.4e-06,23719.0,23718.0,1.61584758]
[1659275656611,9.4e-06,23719.0,23718.0,1.96584758]
[1659275656836,9.4e-06,23719.0,23718.0,2.25647688]
[1659275657277,9.4e-06,23719.0,23718.0,2.28297299]
[1659275657709,9.4e-06,23719.0,23718.0,2.29561647]
[1659275658353,9.4e-06,23719.0,23718.0,2.37461647]
[1659275658580,9.4e-06,23719.0,23718.0,2.29761647]
[1659275659675,9.4e-06,23719.0,23718.0,2.21861647]
[1659275660343,9.4e-06,23719.0,23718.0,2.29761647]
[1659275660841,9.4e-06,23719.0,23718.0,2.31044477]
[1659275661698,9.4e-06,23719.0,23718.0,2.23144477]
[1659275661922,9.4e-06,23719.0,23718.0,2.21880129]
[1659275662361,9.4e-06,23719.0,23718.0,2.26612129]
[1659275662801,9.4e-06,23719.0,23718.0,1.97549199]
[1659275663670,9.4e-06,23719.0,23718.0,1.89649199]
[1659275664485,9.4e-06,23719.0,23718.0,2.29599199]
[1659275665283,9.4e-06,23719.0,23718.0,2.37499199]
[1659275666507,9.4e-06,23719.0,23718.0,2.45399199]
[1659275666720,9.4e-06,23719.0,23718.0,2.37499199]
[1659275666960,9.4e-06,23719.0,23718.0,2.02499199]
[1659275667198,9.4e-06,23719.0,23718.0,1.79567678]
[1659275667461,9.4e-06,23719.0,23718.0,1.39617678]
[1659275667900,9.4e-06,23719.0,23718.0,1.31717678]
[1659275668649,9.4e-06,23719.0,23718.0,1.38334848]
[1659275669553,8.479e-05,23727.0,23719.0,9.961e-05]
[1659275669772,0.40725733,23726.0,23719.0,9.961e-05]
[1659275670010,0.5624,23729.0,23723.0,0.04991521]
[1659275670229,0.3972,23730.0,23724.0,0.02648931]
[1659275670453,0.061,23726.0,23724.0,0.32648931]
[1659275670699,0.061,23726.0,23725.0,0.00282766]
[1659275670910,0.061,23726.0,23725.0,0.03728626]
[1659275671140,0.061,23726.0,23724.0,0.02648931]
[1659275671394,0.0862,23726.0,23724.0,0.02648931]
[1659275671608,0.061,23726.0,23724.0,0.02648931]
[1659275671843,0.00046369,23727.0,23724.0,0.02648931]
[1659275672069,0.00046369,23727.0,23724.0,0.06094791]
[1659275672295,0.05,23726.0,23724.0,0.06094791]
[1659275672511,0.0882,23727.0,23724.0,0.06094791]
[1659275672735,0.0882,23727.0,23725.0,0.00282766]
[1659275672955,0.063,23727.0,23725.0,0.00282766]
[1659275673621,0.0882,23727.0,23725.0,0.00282766]
[1659275673839,0.0252,23727.0,23725.0,0.00282766]
[1659275674080,0.80445733,23730.0,23725.0,0.00282766]
[1659275674294,0.303878,23729.0,23725.0,0.00282766]
[1659275674528,0.061,23727.0,23724.0,0.06094791]
[1659275674990,0.0862,23727.0,23724.0,0.06094791]
[1659275675472,0.05,23726.0,23725.0,0.303878]
[1659275675690,0.0862,23727.0,23725.0,0.303878]
[1659275675691,0.08644912,23727.0,23725.0,0.303878]
[1659275675908,1.34535733,23730.0,23726.0,0.603878]
[1659275675909,0.43245733,23730.0,23726.0,0.603878]
[1659275676187,0.05,23729.0,23727.0,0.0344586]
[1659275676407,0.43245733,23730.0,23725.0,0.3]
[1659275676644,0.03551477,23727.0,23726.0,0.303878]
[1659275677083,0.03551477,23727.0,23726.0,0.3383366]
[1659275677337,0.03551477,23727.0,23726.0,0.0344586]
[1659275677575,0.03551477,23727.0,23726.0,0.03993748]
[1659275677805,0.43245733,23730.0,23726.0,0.03993748]
[1659275678465,0.00046369,23729.0,23726.0,0.03993748]
[1659275678893,0.0252,23729.0,23726.0,0.03993748]
[1659275679141,0.46425733,23730.0,23726.0,0.0344586]
[1659275679369,0.46425733,23730.0,23725.0,0.00540583]
[1659275679370,0.00046369,23729.0,23725.0,0.00540583]
[1659275680127,0.0252,23729.0,23726.0,0.0344586]
[1659275680577,0.063,23729.0,23726.0,0.0344586]
[1659275681733,0.40725733,23730.0,23725.0,0.00540583]
[1659275682641,0.47725733,23730.0,23725.0,0.00540583]
[1659275683116,0.303878,23729.0,23725.0,0.00540583]
[1659275683566,0.00046369,23728.0,23725.0,0.00540583]
[1659275683778,0.02566369,23728.0,23725.0,0.00540583]
[1659275684278,0.05,23727.0,23726.0,0.0344586]
[1659275684500,0.40725733,23730.0,23725.0,0.07740583]
[1659275685903,0.40725733,23730.0,23725.0,0.00540583]
[1659275686344,0.303878,23729.0,23725.0,0.00540583]
[1659275686558,0.47225733,23730.0,23725.0,0.00540583]
[1659275687458,0.303878,23729.0,23725.0,0.00540583]
[1659275687656,0.47225733,23730.0,23725.0,0.00540583]
[1659275687892,0.40725733,23730.0,23726.0,0.0344586]
[1659275688558,0.02566369,23729.0,23726.0,0.0344586]
[1659275689256,0.02566369,23729.0,23725.0,0.00540583]
[1659275689482,0.05,23728.0,23726.0,0.0344586]
[1659275689711,0.056,23730.0,23726.0,0.0344586]
[1659275690156,0.57167,23731.0,23727.0,0.00135544]
[1659275690373,0.30434169,23730.0,23727.0,0.00135544]
[1659275690591,0.05746369,23730.0,23726.0,0.0344586]
[1659275691950,0.05746369,23730.0,23727.0,0.00135544]
[1659275692160,0.057,23730.0,23727.0,0.00135544]
[1659275692394,0.303878,23730.0,23727.0,0.00135544]
[1659275692670,0.057,23730.0,23727.0,0.00135544]
[1659275693112,0.0822,23730.0,23727.0,0.00135544]
[1659275693812,0.0252,23730.0,23727.0,0.00135544]
[1659275694048,0.01537,23731.0,23727.0,0.21198944]
[1659275694494,0.001,23730.0,23727.0,0.21698944]
[1659275695644,0.04057,23731.0,23727.0,0.21198944]
[1659275696324,0.04057,23731.0,23727.0,0.21739601]
[1659275696557,0.09857,23731.0,23727.0,0.00676201]
[1659275696776,0.07337,23731.0,23727.0,0.00676201]
[1659275697002,0.09857,23731.0,23727.0,0.00676201]
[1659275697679,0.04057,23731.0,23727.0,0.00676201]
[1659275697895,0.02566369,23730.0,23727.0,0.00676201]
[1659275698105,0.00046369,23730.0,23727.0,0.00676201]
[1659275698354,0.07337,23731.0,23727.0,0.00676201]
[1659275698803,0.09848456,23731.0,23727.0,0.00676201]
[1659275699329,0.05,23730.0,23728.0,0.210629]
[1659275699559,0.09848456,23731.0,23729.0,0.0344586]
[1659275699775,0.04094825,23731.0,23728.0,0.210629]
[1659275699985,0.04094825,23731.0,23729.0,0.00740653]
[1659275700200,0.04094825,23731.0,23728.0,0.210629]
[1659275700449,0.07737,23731.0,23728.0,0.210629]
[1659275700679,0.07737,23731.0,23729.0,0.0344586]
[1659275700911,0.07737,23731.0,23728.0,0.210629]
[1659275701598,0.07737,23731.0,23729.0,0.0344586]
[1659275701814,0.01537,23731.0,23729.0,0.0344586]
[1659275702032,0.01537,23731.0,23730.0,0.00135241]
[1659275702293,0.319248,23731.0,23729.0,0.0344586]
[1659275702531,0.07337,23731.0,23729.0,0.0344586]
[1659275702743,0.303878,23730.0,23729.0,0.0344586]
[1659275702965,0.07337,23731.0,23729.0,0.0344586]
[1659275703197,0.303878,23730.0,23729.0,0.0393981]
[1659275703429,0.07337,23731.0,23729.0,0.0393981]
[1659275703657,0.01537,23731.0,23729.0,0.0393981]
[1659275704362,0.07737,23731.0,23729.0,0.0393981]
[1659275705121,0.303878,23730.0,23729.0,0.0393981]
[1659275705332,0.07737,23731.0,23729.0,0.0393981]
[1659275705543,0.303878,23730.0,23728.0,0.00514678]
[1659275705766,0.01537,23731.0,23729.0,0.0049395]
[1659275706038,0.303878,23730.0,23728.0,0.00514678]
[1659275706278,0.01537,23731.0,23728.0,0.00514678]
[1659275706756,0.08137,23731.0,23729.0,0.03727528]
[1659275706981,0.10648456,23731.0,23729.0,0.03727528]
[1659275708171,0.04048456,23731.0,23729.0,0.03727528]
[1659275708382,0.10948456,23731.0,23729.0,0.03727528]
[1659275709752,0.01537,23731.0,23729.0,0.03727528]
[1659275709997,0.303878,23730.0,23729.0,0.03727528]
[1659275710222,0.01537,23731.0,23729.0,0.03727528]
[1659275710481,0.303878,23730.0,23728.0,0.04443875]
[1659275710712,0.08437,23731.0,23728.0,0.04443875]
[1659275710944,0.303878,23730.0,23728.0,0.04443875]
[1659275711159,0.10948456,23731.0,23728.0,0.04443875]
[1659275711380,0.08437,23731.0,23728.0,0.04443875]
[1659275711610,0.10948456,23731.0,23728.0,0.04443875]
[1659275711898,0.01537,23731.0,23728.0,0.03960538]
[1659275712114,0.01537,23731.0,23728.0,0.00514678]
[1659275712560,0.08437,23731.0,23728.0,0.00514678]
[1659275712783,0.10948456,23731.0,23728.0,0.00514678]
[1659275713016,0.05,23730.0,23728.0,0.03960538]
[1659275713243,0.10948456,23731.0,23728.0,0.03960538]
[1659275713475,0.05,23730.0,23728.0,0.03960538]
[1659275713726,0.10948456,23731.0,23728.0,0.03960538]
[1659275713966,0.04094825,23731.0,23728.0,0.04252299]
[1659275714426,0.41082625,23731.0,23728.0,0.04252299]
[1659275714653,0.10694825,23731.0,23728.0,0.04252299]
[1659275714873,0.05,23730.0,23728.0,0.04252299]
[1659275715091,0.10648456,23731.0,23728.0,0.04252299]
[1659275715603,0.08137,23731.0,23728.0,0.04252299]
[1659275715813,0.04094825,23731.0,23728.0,0.00514678]
[1659275716034,0.04048456,23731.0,23729.0,0.0344586]
[1659275716270,0.01537,23731.0,23729.0,0.0344586]
[1659275716493,0.08137,23731.0,23729.0,0.0344586]
[1659275716710,0.10648456,23731.0,23728.0,0.00514678]
[1659275716934,0.05,23730.0,23728.0,0.00514678]
[1659275717165,0.08137,23731.0,23729.0,0.03737609]
[1659275717384,0.10648456,23731.0,23729.0,0.03737609]
[1659275718153,0.04069913,23731.0,23729.0,0.03737609]
[1659275718369,0.01537,23731.0,23729.0,0.03737609]
[1659275718591,0.01537,23731.0,23730.0,0.3]
[1659275718592,0.03037,23731.0,23730.0,0.3]
[1659275718823,0.03037,23731.0,23730.0,1.30379321]
[1659275719284,0.03037,23731.0,23730.0,1.76105054]
[1659275719520,0.03037,23731.0,23730.0,1.54272054]
[1659275719767,0.03037,23731.0,23730.0,1.01113533]
[1659275719768,0.01537,23731.0,23730.0,1.01113533]
[1659275719985,0.01537,23731.0,23730.0,0.40725733]
[1659275720227,0.01537,23731.0,23729.0,0.44977877]
[1659275720443,0.01537,23731.0,23730.0,0.079]
[1659275720694,0.01537,23731.0,23730.0,0.1134586]
[1659275720935,0.01537,23731.0,23730.0,0.079]
[1659275721385,0.01537,23731.0,23730.0,0.08741916]
[1659275721629,0.01537,23731.0,23730.0,0.12187776]
[1659275721849,0.01537,23731.0,23730.0,0.04287776]
[1659275722571,0.08537,23731.0,23730.0,0.06087776]
[1659275722803,0.08529003,23731.0,23730.0,0.018]
[1659275723742,0.08529003,23731.0,23730.0,0.05315413]
[1659275723969,0.01529003,23731.0,23730.0,0.04029664]
[1659275724424,0.08529003,23731.0,23730.0,0.05829664]
[1659275725583,0.08529003,23731.0,23730.0,0.10829664]
[1659275725831,0.01529003,23731.0,23730.0,0.39417464]
[1659275726087,0.01529003,23731.0,23730.0,0.69417464]
[1659275726535,0.01529003,23731.0,23730.0,0.77317464]
[1659275727711,0.01529003,23731.0,23730.0,1.10143197]
[1659275728181,0.01529003,23731.0,23730.0,1.15143197]
[1659275728412,0.01529003,23731.0,23730.0,1.10143197]
[1659275728868,0.01529003,23731.0,23730.0,1.23043197]
[1659275729086,0.01529003,23731.0,23730.0,1.86384718]
[1659275729357,0.01529003,23731.0,23730.0,1.89551718]
[1659275729588,0.01529003,23731.0,23730.0,1.85884718]
[1659275729843,0.01529003,23731.0,23730.0,1.89051718]
[1659275730080,0.01529003,23731.0,23730.0,1.82915774]
[1659275730569,0.01529003,23731.0,23730.0,1.88215774]
[1659275731253,0.01529003,23731.0,23730.0,1.8320809]
[1659275731497,0.01529003,23731.0,23730.0,1.8004109]
[1659275731966,0.01529003,23731.0,23730.0,1.7474109]
[1659275732198,0.01529003,23731.0,23730.0,0.92767172]
[1659275732664,0.01529003,23731.0,23730.0,1.00667172]
[1659275733585,0.01529003,23731.0,23730.0,1.65667172]
[1659275733836,0.01529003,23731.0,23730.0,1.62767172]
[1659275734282,0.01529003,23731.0,23730.0,1.32767172]
[1659275734514,0.01529003,23731.0,23730.0,2.4814885]
[1659275734729,0.01529003,23731.0,23730.0,2.5604885]
[1659275735886,0.001,23733.0,23730.0,2.5604885]
[1659275736153,0.001,23733.0,23731.0,0.603878]
[1659275736387,0.001,23733.0,23732.0,1.24045054]
[1659275736613,0.001,23733.0,23732.0,1.94352999]
[1659275737568,0.001,23733.0,23732.0,1.97519999]
[1659275738044,0.001,23733.0,23732.0,1.94352999]
[1659275738263,0.001,23733.0,23732.0,1.11113533]
[1659275738492,0.001,23733.0,23732.0,1.19013533]
[1659275739198,0.00353614,23733.0,23732.0,1.19013533]
[1659275739418,0.00353614,23733.0,23732.0,1.14013533]
[1659275739871,0.00353614,23733.0,23732.0,1.06113533]
[1659275740330,0.00353614,23733.0,23732.0,1.06585156]
[1659275740560,0.00353614,23733.0,23732.0,1.11085156]
[1659275741740,0.00353614,23733.0,23732.0,1.06585156]
[1659275742423,0.00353614,23733.0,23732.0,1.11085156]
[1659275743804,0.00353614,23733.0,23732.0,1.06585156]
[1659275744086,0.00353614,23733.0,23732.0,1.11576677]
[1659275744550,0.00353614,23733.0,23732.0,1.17376677]
[1659275745246,0.00353614,23733.0,23732.0,1.16876677]
[1659275745896,0.00353614,23733.0,23732.0,0.76576677]
[1659275746346,0.00353614,23733.0,23732.0,1.16576677]
[1659275746586,0.00353614,23733.0,23732.0,1.22376677]
[1659275747922,0.00353614,23733.0,23732.0,1.16576677]
[1659275748631,0.00353614,23733.0,23732.0,1.22376677]